bitfinex/quotes_SOLUSD_20241223
["timestamp","ask_amount","ask_price","bid_price","bid_amount"]
[1734941171562,53.816094,182.19,182.08,20.87760304]
[1734941171563,20.0,182.19,182.13,33.816094]
[1734941172485,39.989194,182.23,182.15,33.816094]
[1734941172687,33.816094,182.23,182.15,33.816094]
[1734941173190,0.12549,182.22,182.15,33.816094]
[1734941173563,33.816094,182.23,182.15,33.816094]
[1734941174476,33.816094,182.25,182.17,33.816094]
[1734941174663,33.816094,182.27,182.19,33.816094]
[1734941174864,33.816094,182.23,182.15,33.816094]
[1734941175749,33.816094,182.25,182.17,33.816094]
[1734941175975,33.816094,182.27,182.19,33.816094]
[1734941176597,0.12549,182.22,182.15,33.816094]
[1734941176783,33.816094,182.2,182.12,33.816094]
[1734941177183,33.816094,182.22,182.14,33.816094]
[1734941177363,33.816094,182.22,182.09,13.7294]
[1734941177364,33.816094,182.24,182.16,33.816094]
[1734941177559,33.816094,182.26,182.18,33.816094]
[1734941179484,33.816094,182.22,182.14,33.816094]
[1734941179687,33.816094,182.18,182.1,33.816094]
[1734941179990,33.816094,182.16,182.08,33.870106]
[1734941180891,33.941584,182.18,182.1,33.816094]
[1734941181560,0.12549,182.15,182.08,0.054012]
[1734941181792,33.816094,182.14,182.08,0.054012]
[1734941181991,20.0,182.11,182.08,0.054012]
[1734941182197,33.816094,182.14,182.08,0.054012]
[1734941182361,33.816094,182.16,182.08,33.870106]
[1734941182763,6.285,182.17,182.1,33.816094]
[1734941183063,20.0,182.17,182.12,33.816094]
[1734941183816,33.816094,182.24,182.16,33.816094]
[1734941184163,0.12549,182.25,182.18,33.816094]
[1734941184361,33.816094,182.24,182.16,33.816094]
[1734941184766,33.816094,182.26,182.18,33.816094]
[1734941186310,53.816094,182.24,182.16,33.816094]
[1734941187200,20.0,182.24,182.18,33.816094]
[1734941188517,53.816094,182.24,182.18,33.816094]
[1734941190493,33.816094,182.26,182.18,33.816094]
[1734941190703,21.967318,182.32,182.2,33.816094]
[1734941190704,33.816094,182.28,182.2,33.816094]
[1734941190894,0.12549,182.27,182.2,33.816094]
[1734941191718,0.12549,182.25,182.18,33.816094]
[1734941191881,33.816094,182.26,182.18,33.816094]
[1734941192086,33.816094,182.26,182.11,2.39200671]
[1734941192087,33.816094,182.28,182.2,33.816094]
[1734941192787,0.12549,182.27,182.2,33.816094]
[1734941193215,33.816094,182.28,182.2,33.816094]
[1734941195037,0.12549,182.27,182.2,33.816094]
[1734941195201,33.816094,182.26,182.18,33.816094]
[1734941195404,53.816094,182.28,182.2,33.816094]
[1734941195911,20.0,182.28,182.2,33.816094]
[1734941196111,33.816094,182.3,182.22,33.816094]
[1734941196328,6.0776,182.31,182.24,33.816094]
[1734941196628,6.0776,182.31,182.19,0.12549]
[1734941196629,33.816094,182.34,182.26,33.816094]
[1734941196806,0.12549,182.33,182.26,33.816094]
[1734941197001,33.816094,182.32,182.24,33.816094]
[1734941197707,37.929494,182.34,182.26,33.816094]
[1734941197893,33.816094,182.34,182.26,33.816094]
[1734941198864,0.12549,182.3,182.24,33.816094]
[1734941199003,20.0,182.29,182.22,33.816094]
[1734941199329,20.0,182.29,182.18,6.3716]
[1734941199330,33.816094,182.26,182.18,33.816094]
[1734941199495,33.816094,182.24,182.16,33.816094]
[1734941201011,0.12549,182.23,182.16,33.816094]
[1734941201311,0.12549,182.17,182.1,33.816094]
[1734941201513,33.816094,182.14,182.08,33.870106]
[1734941201835,33.816094,182.14,182.08,0.054012]
[1734941202202,33.816094,182.14,182.08,33.870106]
[1734941202527,0.12549,182.15,182.08,33.870106]
[1734941202528,33.816094,182.16,182.08,33.870106]
[1734941202937,20.0,182.15,182.1,33.816094]
[1734941203242,33.816094,182.21,182.13,33.816094]
[1734941203414,33.816094,182.23,182.15,33.816094]
[1734941204237,33.816094,182.23,182.17,33.816094]
[1734941205849,33.816094,182.23,182.15,33.816094]
[1734941206212,0.12549,182.22,182.15,33.816094]
[1734941206544,33.816094,182.21,182.13,33.816094]
[1734941208838,33.816094,182.23,182.15,33.816094]
[1734941209148,20.0,182.2,182.15,33.816094]
[1734941209437,0.12549,182.22,182.15,33.816094]
[1734941209647,20.0,182.2,182.15,33.816094]
[1734941210254,20.0,182.2,182.13,33.816094]
[1734941210839,20.0,182.2,182.11,33.816094]
[1734941210840,33.816094,182.19,182.11,33.816094]
[1734941211354,33.816094,182.13,182.08,0.054012]
[1734941211650,33.816094,182.11,182.08,0.054012]
[1734941211848,33.816094,182.09,182.08,0.054012]
[1734941213551,20.0,182.09,182.08,0.054012]
[1734941214447,33.816094,182.13,182.08,0.054012]
[1734941214823,0.12549,182.12,182.08,0.054012]
[1734941216629,33.816094,182.13,182.08,0.054012]
[1734941217351,20.0,182.1,182.08,0.054012]
[1734941217650,20.12549,182.09,182.08,0.054012]
[1734941218256,53.941584,182.09,182.08,0.054012]
[1734941219355,77.718468,182.09,182.08,0.054012]
[1734941220270,53.941584,182.09,182.08,0.054012]
[1734941220641,83.809368,182.09,182.08,0.054012]
[1734941221031,57.592978,182.05,182.04,0.6768751]
[1734941221529,33.816094,182.05,182.04,0.6768751]
[1734941221736,33.816094,182.07,182.04,0.6768751]
[1734941222160,20.0,182.05,182.04,0.6768751]
[1734941222351,53.816094,182.05,182.04,0.6768751]
[1734941224463,77.718468,182.05,182.04,0.6768751]
[1734941230067,20.0,182.0,181.89,35.372494]
[1734941230263,33.816094,181.95,181.89,1.5564]
[1734941230467,33.816094,181.94,181.86,34.4929691]
[1734941231562,33.816094,181.93,181.86,34.4929691]
[1734941232877,33.816094,181.93,181.86,0.6768751]
[1734941233077,33.816094,181.91,181.86,0.6768751]
[1734941233246,33.816094,181.9,181.86,0.6768751]
[1734941233677,0.12549,181.89,181.86,0.6768751]
[1734941234155,20.12549,181.87,181.86,0.6768751]
[1734941234483,84.118168,181.87,181.86,0.6768751]
[1734941234846,60.341284,181.87,181.86,0.6768751]
[1734941235659,33.816094,181.89,181.86,0.6768751]
[1734941235857,33.816094,181.92,181.86,0.6768751]
[1734941236403,33.941584,181.91,181.86,0.6768751]
[1734941236581,33.816094,181.92,181.86,0.6768751]
[1734941237281,33.816094,181.91,181.86,0.6768751]
[1734941240394,20.12549,181.87,181.86,0.6768751]
[1734941240559,53.941584,181.87,181.86,0.6768751]
[1734941242488,53.816094,181.87,181.86,0.6768751]
[1734941242688,33.816094,181.89,181.86,0.6768751]
[1734941242851,33.816094,181.93,181.86,0.6768751]
[1734941243054,33.816094,181.95,181.87,33.816094]
[1734941243474,33.816094,181.93,181.86,0.6768751]
[1734941245768,1.6185,182.01,181.87,2.37996835]
[1734941245769,33.816094,181.95,181.87,2.37996835]
[1734941245975,33.816094,181.97,181.89,33.816094]
[1734941246687,33.816094,181.97,181.87,1.5554]
[1734941246894,0.12549,181.96,181.87,35.371494]
[1734941247275,33.816094,181.97,181.87,35.371494]
[1734941247799,0.12549,181.96,181.87,35.371494]
[1734941248896,33.816094,181.99,181.89,33.816094]
[1734941249104,33.816094,181.99,181.91,33.816094]
[1734941251280,33.816094,181.97,181.89,33.816094]
[1734941251477,0.12549,181.96,181.89,33.816094]
[1734941251990,0.12549,181.94,181.87,35.371494]
[1734941252185,33.816094,181.93,181.87,1.5554]
[1734941253678,7.6716,182.06,181.87,35.371494]
[1734941253679,33.816094,181.95,181.87,35.371494]
[1734941255409,0.12549,181.94,181.87,35.371494]
[1734941260008,33.816094,181.93,181.86,0.6768751]
[1734941260311,33.816094,181.91,181.86,0.6768751]
[1734941264221,0.12549,181.9,181.86,0.6768751]
[1734941265118,0.12549,181.88,181.86,0.6768751]
[1734941265489,21.04956229,181.87,181.86,0.6768751]
[1734941267915,20.92407229,181.87,181.86,0.6768751]
[1734941268128,20.92407229,181.89,181.86,0.6768751]
[1734941268902,20.92407229,181.91,181.86,0.6768751]
[1734941269107,20.92407229,181.93,181.86,0.6768751]
[1734941269491,20.92407229,181.95,181.88,20.92407229]
[1734941269807,20.92407229,181.97,181.9,20.92407229]
[1734941270235,33.97413771,181.98,181.9,33.97413771]
[1734941270939,33.97413771,182.0,181.92,33.97413771]
[1734941272047,33.97413771,182.0,181.94,33.97413771]
[1734941275225,33.97413771,182.02,181.95,13.74]
[1734941276046,33.97413771,182.06,181.98,33.97413771]
[1734941276254,33.97413771,182.08,182.0,33.97413771]
[1734941277730,28.76895216,182.08,182.0,33.97413771]
[1734941278523,28.76895216,182.08,182.01,13.7355]
[1734941278721,33.97413771,182.12,182.04,33.97413771]
[1734941278932,4.116,182.22,182.07,33.97413771]
[1734941278933,7.7518,182.21,182.07,33.97413771]
[1734941279226,33.97413771,182.16,182.07,33.97413771]
[1734941279733,33.97413771,182.15,182.08,33.97413771]
[1734941280452,33.97413771,182.19,182.11,33.97413771]
[1734941280767,33.97413771,182.22,182.13,33.97413771]
[1734941281059,33.97413771,182.2,182.13,33.97413771]
[1734941281221,33.97413771,182.15,182.06,13.7312]
[1734941281840,0.12549,182.15,182.08,33.97413771]
[1734941282039,57.49167471,182.25,182.1,33.97413771]
[1734941282232,33.97413771,182.18,182.1,33.97413771]
[1734941282432,33.97413771,182.18,182.11,33.97413771]
[1734941282956,0.12549,182.18,182.11,33.97413771]
[1734941283338,33.97413771,182.2,182.12,33.97413771]
[1734941283544,33.97413771,182.22,182.14,33.97413771]
[1734941283749,33.97413771,182.26,182.18,33.97413771]
[1734941285662,33.97413771,182.28,182.2,33.97413771]
[1734941285884,33.97413771,182.3,182.22,33.97413771]
[1734941286162,33.97413771,182.32,182.24,33.97413771]
[1734941286371,33.97413771,182.3,182.22,33.97413771]
[1734941286534,33.97413771,182.28,182.2,33.97413771]
[1734941288729,33.97413771,182.32,182.24,33.97413771]
[1734941288964,0.12549,182.31,182.24,33.97413771]
[1734941289144,33.97413771,182.32,182.24,33.97413771]
[1734941289932,33.97413771,182.34,182.26,33.97413771]
[1734941290260,33.97413771,182.32,182.26,33.97413771]
[1734941293964,33.97413771,182.4,182.3,33.97413771]
[1734941294146,1.5172,182.44,182.35,33.97413771]
[1734941294347,33.97413771,182.45,182.37,33.97413771]
[1734941295457,33.97413771,182.47,182.39,33.97413771]
[1734941295832,0.12549,182.46,182.39,33.97413771]
[1734941296164,33.97413771,182.49,182.41,33.97413771]
[1734941296669,0.12549,182.48,182.41,33.97413771]
[1734941297167,33.97413771,182.49,182.41,33.97413771]
[1734941297337,0.6768751,182.5,182.43,33.97413771]
[1734941297663,0.6768751,182.5,182.49,33.97413771]
[1734941298349,0.6768751,182.5,182.48,33.97413771]
[1734941298752,0.6768751,182.5,182.46,33.97413771]
[1734941298958,0.12549,182.54,182.47,33.97413771]
[1734941299759,33.97413771,182.53,182.45,35.54393771]
[1734941299957,33.97413771,182.51,182.44,33.97413771]
[1734941300141,33.97413771,182.51,182.43,33.97413771]
[1734941302264,33.97413771,182.55,182.48,33.97413771]
[1734941302576,33.97413771,182.59,182.5,33.97413771]
[1734941302783,33.97413771,182.59,182.52,33.97413771]
[1734941305268,0.12549,182.56,182.5,33.97413771]
[1734941305478,0.12549,182.56,182.48,33.97413771]
[1734941306866,0.12549,182.56,182.5,33.97413771]
[1734941308386,0.12549,182.56,182.48,53.97413771]
[1734941310584,33.97413771,182.57,182.48,53.97413771]
[1734941310890,33.97413771,182.61,182.52,33.97413771]
[1734941311092,0.6768751,182.68,182.56,33.97413771]
[1734941311093,33.97413771,182.65,182.56,33.97413771]
[1734941312192,33.97413771,182.63,182.56,33.97413771]
[1734941313087,33.97413771,182.63,182.54,33.97413771]
[1734941313294,33.97413771,182.57,182.5,33.97413771]
[1734941313499,33.97413771,182.53,182.46,35.54983771]
[1734941314091,33.97413771,182.53,182.46,33.97413771]
[1734941314475,0.12549,182.52,182.44,33.97413771]
[1734941316899,0.12549,182.5,182.44,33.97413771]
[1734941317079,0.12549,182.5,182.42,33.97413771]
[1734941319397,0.12549,182.5,182.44,33.97413771]
[1734941319563,33.97413771,182.53,182.46,33.97413771]
[1734941319766,33.97413771,182.53,182.43,33.97413771]
[1734941319767,40.22193771,182.57,182.5,33.97413771]
[1734941321286,1.6208,182.63,182.45,14.52406812]
[1734941321287,33.97413771,182.59,182.52,33.97413771]
[1734941321785,6.2495,182.62,182.56,33.97413771]
[1734941323097,0.12549,182.62,182.56,33.97413771]
[1734941323697,33.97413771,182.63,182.56,33.97413771]
[1734941327093,34.09962771,182.65,182.56,33.97413771]
[1734941328700,33.97413771,182.63,182.54,33.97413771]
[1734941328899,33.97413771,182.63,182.56,33.97413771]
[1734941329065,0.12549,182.62,182.54,33.97413771]
[1734941329268,33.97413771,182.61,182.54,33.97413771]
[1734941329782,0.12549,182.6,182.54,33.97413771]
[1734941329985,33.97413771,182.59,182.5,33.97413771]
[1734941333888,33.97413771,182.57,182.5,33.97413771]
[1734941334190,33.97413771,182.57,182.48,33.97413771]
[1734941335104,33.97413771,182.53,182.44,33.97413771]
[1734941335512,33.97413771,182.53,182.46,33.97413771]
[1734941335703,7.546,182.64,182.52,33.97413771]
[1734941335912,33.97413771,182.6,182.52,33.97413771]
[1734941337219,41.52013771,182.64,182.56,33.97413771]
[1734941338991,0.12549,182.63,182.56,20.0]
[1734941339196,0.12549,182.63,182.54,33.97413771]
[1734941340743,33.97413771,182.66,182.59,20.0]
[1734941341028,41.03481281,182.68,182.6,33.97413771]
[1734941341213,41.03481281,182.68,182.59,20.0]
[1734941341214,33.97413771,182.66,182.59,20.0]
[1734941342016,0.12549,182.65,182.59,20.0]
[1734941342222,33.97413771,182.66,182.59,20.0]
[1734941343728,41.03481281,182.68,182.6,33.97413771]
[1734941344032,0.6768751,182.68,182.64,33.97413771]
[1734941344695,0.6768751,182.68,182.66,33.97413771]
[1734941345643,4.1031,182.79,182.62,2.33627688]
[1734941345644,33.97413771,182.8,182.7,20.0]
[1734941345825,33.97413771,182.81,182.73,33.97413771]
[1734941346917,33.97413771,182.8,182.72,33.97413771]
[1734941347132,33.97413771,182.77,182.7,20.0]
[1734941347333,33.97413771,182.76,182.68,33.97413771]
[1734941347845,33.97413771,182.77,182.7,33.97413771]
[1734941348019,33.97413771,182.8,182.72,33.97413771]
[1734941348344,33.97413771,182.8,182.73,33.97413771]
[1734941348552,33.97413771,182.81,182.73,33.97413771]
[1734941348727,33.97413771,182.81,182.74,33.97413771]
[1734941349859,40.22003771,182.83,182.74,33.97413771]
[1734941350948,6.2459,182.83,182.74,33.97413771]
[1734941351124,33.97413771,182.82,182.74,33.97413771]
[1734941352125,33.97413771,182.78,182.7,33.97413771]
[1734941353144,0.12549,182.77,182.7,33.97413771]
[1734941356252,33.97413771,182.8,182.72,33.97413771]
[1734941357261,33.97413771,182.76,182.68,33.97413771]
[1734941357553,33.97413771,182.74,182.66,33.97413771]
[1734941360439,0.12549,182.73,182.66,33.97413771]
[1734941360631,33.97413771,182.74,182.66,33.97413771]
[1734941360826,0.12549,182.73,182.66,33.97413771]
[1734941361247,0.12549,182.69,182.62,33.97413771]
[1734941361429,0.12549,182.67,182.56,8.1696]
[1734941361652,10.445,182.74,182.63,33.97413771]
[1734941361653,33.97413771,182.7,182.63,33.97413771]
[1734941362235,33.97413771,182.68,182.61,33.97413771]
[1734941362451,0.12549,182.67,182.59,33.97413771]
[1734941362636,33.97413771,182.68,182.59,33.97413771]
[1734941362850,33.97413771,182.7,182.61,33.97413771]
[1734941363160,33.97413771,182.72,182.65,33.97413771]
[1734941364264,0.12549,182.71,182.63,33.97413771]
[1734941364446,0.12549,182.69,182.61,33.97413771]
[1734941365462,33.97413771,182.68,182.61,33.97413771]
[1734941366056,0.12549,182.67,182.61,33.97413771]
[1734941366254,33.97413771,182.66,182.59,33.97413771]
[1734941366482,0.12549,182.63,182.55,33.97413771]
[1734941366632,33.97413771,182.64,182.53,0.8212149]
[1734941366633,33.97413771,182.62,182.53,33.97413771]
[1734941366826,0.12549,182.61,182.53,33.97413771]
[1734941367030,33.97413771,182.6,182.53,33.97413771]
[1734941367654,33.97413771,182.58,182.51,33.97413771]
[1734941367860,33.97413771,182.58,182.49,33.97413771]
[1734941369667,33.97413771,182.6,182.51,33.97413771]
[1734941369966,33.97413771,182.6,182.53,33.97413771]
[1734941373950,0.12549,182.59,182.51,33.97413771]
[1734941374771,0.12549,182.55,182.49,33.97413771]
[1734941375069,0.12549,182.55,182.47,33.97413771]
[1734941375777,8.1712,182.56,182.49,33.97413771]
[1734941376071,33.97413771,182.6,182.5,0.82166295]
[1734941376258,33.97413771,182.56,182.48,20.0]
[1734941376462,33.97413771,182.56,182.48,53.97413771]
[1734941376760,0.12549,182.57,182.5,33.97413771]
[1734941377268,33.97413771,182.58,182.5,33.97413771]
[1734941378473,33.97413771,182.56,182.48,33.97413771]
[1734941378677,0.12549,182.55,182.48,33.97413771]
[1734941380375,33.97413771,182.58,182.5,33.97413771]
[1734941380564,33.97413771,182.6,182.52,33.97413771]
[1734941380944,0.12549,182.59,182.52,33.97413771]
[1734941381163,33.97413771,182.6,182.52,33.97413771]
[1734941381563,0.12549,182.59,182.52,33.97413771]
[1734941382673,7.6519,182.61,182.52,33.97413771]
[1734941385073,33.97413771,182.6,182.52,33.97413771]
[1734941385688,7.6519,182.61,182.52,33.97413771]
[1734941387596,33.97413771,182.62,182.54,33.97413771]
[1734941387775,33.97413771,182.64,182.56,33.97413771]
[1734941388188,28.45506387,182.65,182.56,20.75636387]
[1734941388684,20.75636387,182.67,182.59,23.776884]
[1734941389967,20.75636387,182.67,182.6,20.75636387]
[1734941390776,20.75636387,182.67,182.58,20.75636387]
[1734941391370,1.5895,182.69,182.56,0.8213034]
[1734941391371,20.75636387,182.65,182.56,20.75636387]
[1734941391602,20.75636387,182.61,182.52,20.75636387]
[1734941391766,27.25576387,182.61,182.52,20.75636387]
[1734941392899,27.25576387,182.61,182.54,20.75636387]
[1734941394180,6.4994,182.61,182.54,33.73669574]
[1734941395064,33.73669574,182.6,182.52,33.73669574]
[1734941395266,0.12549,182.59,182.52,33.73669574]
[1734941397898,1.5996,182.6,182.54,33.73669574]
[1734941398077,6.4994,182.61,182.54,33.73669574]
[1734941399196,39.43779574,182.64,182.56,33.73669574]
[1734941399389,35.33129574,182.64,182.56,33.73669574]
[1734941400501,0.12549,182.63,182.56,33.73669574]
[1734941400679,33.73669574,182.62,182.54,33.73669574]
[1734941401511,1.5946,182.64,182.58,33.73669574]
[1734941401800,40.23259574,182.66,182.58,33.73669574]
[1734941402000,1.6015,182.69,182.62,33.73669574]
[1734941402170,6.2257,182.71,182.65,33.73669574]
[1734941402574,33.86218574,182.7,182.63,33.73669574]
[1734941402793,33.86218574,182.7,182.61,0.821069]
[1734941402794,33.73669574,182.68,182.61,33.73669574]
[1734941403189,33.86218574,182.7,182.62,33.73669574]
[1734941403500,6.2257,182.71,182.64,33.73669574]
[1734941403664,6.2257,182.71,182.65,33.73669574]
[1734941403866,6.2257,182.71,182.64,33.73669574]
[1734941404080,1.6015,182.73,182.63,0.8211083]
[1734941404081,35.33819574,182.73,182.66,33.73669574]
[1734941404279,1.6015,182.73,182.66,33.73669574]
[1734941404786,35.33819574,182.73,182.65,33.73669574]
[1734941404969,35.33819574,182.73,182.66,33.73669574]
[1734941405585,33.73669574,182.71,182.64,33.73669574]
[1734941406510,33.73669574,182.69,182.62,33.73669574]
[1734941407282,0.12549,182.7,182.62,33.73669574]
[1734941408397,33.73669574,182.69,182.62,33.73669574]
[1734941409316,33.73669574,182.67,182.6,33.73669574]
[1734941409479,33.73669574,182.65,182.58,33.73669574]
[1734941409679,33.73669574,182.65,182.56,33.73669574]
[1734941409892,33.73669574,182.63,182.56,33.73669574]
[1734941410577,33.73669574,182.65,182.56,33.73669574]
[1734941410976,33.73669574,182.65,182.53,0.82140101]
[1734941410977,37.84239574,182.67,182.58,33.73669574]
[1734941411198,33.73669574,182.67,182.58,33.73669574]
[1734941411408,6.1544,182.68,182.6,33.73669574]
[1734941411811,6.1544,182.68,182.62,33.73669574]
[1734941412182,6.1544,182.68,182.64,33.73669574]
[1734941412384,41.55029574,182.73,182.64,33.73669574]
[1734941413686,0.12549,182.7,182.62,33.73669574]
[1734941416818,33.73669574,182.69,182.62,33.73669574]
[1734941417008,0.12549,182.66,182.6,33.73669574]
[1734941417329,53.73669574,182.61,182.46,16.70379522]
[1734941417521,33.73669574,182.58,182.46,16.70379522]
[1734941417822,33.73669574,182.58,182.47,0.82172254]
[1734941418117,33.73669574,182.6,182.49,0.8216415]
[1734941418292,33.73669574,182.6,182.46,3.00451854]
[1734941418490,33.73669574,182.6,182.46,0.82160435]
[1734941418724,33.73669574,182.58,182.5,33.73669574]
[1734941421610,33.73669574,182.6,182.52,33.73669574]
[1734941421805,20.0,182.61,182.54,33.73669574]
[1734941422109,1.5887,182.63,182.56,33.73669574]
[1734941422318,6.2273,182.64,182.58,33.73669574]
[1734941423009,33.73669574,182.66,182.58,33.73669574]
[1734941423211,1.6558,182.67,182.6,33.73669574]
[1734941424418,33.73669574,182.66,182.57,20.0]
[1734941424745,33.73669574,182.66,182.57,33.73669574]
[1734941425612,1.6558,182.67,182.59,33.73669574]
[1734941425938,40.09649574,182.68,182.61,33.73669574]
[1734941427617,33.73669574,182.66,182.59,33.73669574]
[1734941428145,33.73669574,182.64,182.57,33.73669574]
[1734941428738,33.73669574,182.66,182.57,33.73669574]
[1734941429331,33.73669574,182.64,182.57,33.73669574]
[1734941430638,20.12549,182.65,182.57,33.73669574]
[1734941431341,0.12549,182.65,182.57,33.73669574]
[1734941431846,37.84309574,182.64,182.55,33.73669574]
[1734941432821,33.73669574,182.66,182.57,33.73669574]
[1734941433144,33.73669574,182.7,182.63,33.73669574]
[1734941433332,33.73669574,182.7,182.61,33.73669574]
[1734941433845,33.73669574,182.68,182.61,33.73669574]
[1734941434037,33.73669574,182.68,182.59,33.73669574]
[1734941436151,20.87716066,182.67,182.59,20.75167066]
[1734941437546,20.0,182.68,182.59,20.75167066]
[1734941437748,20.75167066,182.69,182.61,20.75167066]
[1734941446259,0.12549,182.68,182.59,20.75167066]
[1734941446440,20.75167066,182.65,182.57,20.75167066]
[1734941448261,20.75167066,182.69,182.61,20.75167066]
[1734941451068,0.12549,182.68,182.59,20.75167066]
[1734941451261,0.12549,182.66,182.57,20.75167066]
[1734941452068,0.12549,182.66,182.59,40.75167066]
[1734941453474,0.12549,182.64,182.57,20.75167066]
[1734941453770,20.75167066,182.61,182.53,20.75167066]
[1734941456278,8.1812,182.63,182.51,2.19968949]
[1734941456279,0.12549,182.58,182.51,20.75167066]
[1734941456644,20.75167066,182.55,182.47,20.75167066]
[1734941456946,20.75167066,182.55,182.44,2.15513164]
[1734941456947,20.75167066,182.51,182.45,20.75167066]
[1734941457977,20.75167066,182.53,182.45,20.75167066]
[1734941460682,22.28007066,182.55,182.47,20.75167066]
[1734941460979,0.12549,182.54,182.47,20.75167066]
[1734941461457,0.12549,182.52,182.45,20.75167066]
[1734941461694,20.75167066,182.53,182.45,20.75167066]
[1734941461855,1.5284,182.55,182.49,20.75167066]
[1734941462052,6.5375,182.57,182.51,20.75167066]
[1734941462257,1.5119,182.59,182.54,20.75167066]
[1734941462475,1.5119,182.59,182.55,20.75167066]
[1734941462675,1.5119,182.59,182.53,20.75167066]
[1734941463057,1.5119,182.59,182.51,20.75167066]
[1734941463455,1.5119,182.59,182.48,2.18079169]
[1734941463456,1.5119,182.59,182.53,20.75167066]
[1734941464388,26.81877066,182.62,182.55,20.75167066]
[1734941467285,20.75167066,182.6,182.53,20.75167066]
[1734941467594,1.5135,182.55,182.48,20.75167066]
[1734941469286,20.75167066,182.58,182.5,20.75167066]
[1734941469481,1.5836,182.59,182.54,20.75167066]
[1734941469790,6.0671,182.62,182.56,20.75167066]
[1734941469950,6.0671,182.62,182.58,20.75167066]
[1734941470157,1.6484,182.64,182.58,20.75167066]
[1734941471981,27.24187066,182.66,182.55,0.82131237]
[1734941472190,6.4902,182.66,182.6,33.71890533]
[1734941473595,6.5447,182.71,182.64,33.71890533]
[1734941473905,1.5062,182.73,182.67,33.71890533]
[1734941474104,1.5062,182.73,182.66,33.71890533]
[1734941474398,33.71890533,182.72,182.65,33.71890533]
[1734941474564,35.22510533,182.73,182.65,33.71890533]
[1734941474763,6.5447,182.75,182.69,33.71890533]
[1734941474995,6.5447,182.75,182.7,33.71890533]
[1734941475193,6.5447,182.75,182.69,53.71890533]
[1734941476987,6.5447,182.75,182.7,33.71890533]
[1734941481800,6.3982,182.81,182.74,33.71890533]
[1734941481974,85.51813308,182.94,182.71,0.82065629]
[1734941481975,33.71890533,182.85,182.78,33.71890533]
[1734941482371,8.5963751,182.86,182.78,33.71890533]
[1734941482574,7.0750751,182.86,182.81,33.71890533]
[1734941482994,33.71890533,182.84,182.75,20.82054583]
[1734941483169,7.0750751,182.86,182.79,33.71890533]
[1734941483368,7.0750751,182.86,182.8,33.71890533]
[1734941483901,0.6768751,182.86,182.81,33.71890533]
[1734941485086,0.6768751,182.86,182.8,33.71890533]
[1734941485282,34.39578043,182.86,182.78,33.71890533]
[1734941486010,0.12549,182.85,182.78,33.71890533]
[1734941487383,33.84439533,182.85,182.78,33.71890533]
[1734941488486,33.84439533,182.85,182.76,33.71890533]
[1734941488996,6.0506,182.81,182.76,33.71890533]
[1734941489208,6.0506,182.81,182.72,33.71890533]
[1734941489209,0.12549,182.8,182.72,33.71890533]
[1734941489412,33.71890533,182.79,182.72,33.71890533]
[1734941491309,43.87230533,182.81,182.72,33.71890533]
[1734941492205,20.72122834,182.8,182.73,20.72122834]
[1734941492887,20.72122834,182.78,182.69,20.72122834]
[1734941493581,6.0506,182.81,182.66,23.776884]
[1734941493582,6.0506,182.81,182.75,20.72122834]
[1734941493886,6.0506,182.81,182.77,20.72122834]
[1734941497215,1.5753,182.82,182.77,20.72122834]
[1734941497414,6.5177,182.85,182.81,20.72122834]
[1734941497618,1.5993,182.88,182.81,20.72122834]
[1734941497801,1.5993,182.88,182.83,20.72122834]
[1734941498616,6.5177,182.89,182.85,20.72122834]
[1734941499002,6.5177,182.89,182.83,20.72122834]
[1734941499893,6.5177,182.89,182.8,0.82017491]
[1734941500097,6.5177,182.89,182.82,20.72122834]
[1734941500315,6.5177,182.89,182.82,33.63735262]
[1734941500698,33.63735262,182.88,182.8,33.63735262]
[1734941500998,33.63735262,182.87,182.79,33.63735262]
[1734941501404,54.31422772,182.86,182.79,33.63735262]
[1734941502001,20.6768751,182.86,182.79,33.63735262]
[1734941503115,20.6768751,182.86,182.81,33.63735262]
[1734941503322,20.6768751,182.86,182.8,33.63735262]
[1734941504290,1.5331,182.84,182.78,33.63735262]
[1734941504494,1.5331,182.84,182.77,33.63735262]
[1734941504904,35.17045262,182.84,182.77,20.0]
[1734941505104,35.17045262,182.84,182.76,33.63735262]
[1734941505303,0.12549,182.83,182.76,33.63735262]
[1734941505493,0.12549,182.81,182.74,33.63735262]
[1734941506750,6.071,182.8,182.74,33.63735262]
[1734941508726,41.83005262,182.84,182.76,33.63735262]
[1734941509211,20.0,182.81,182.74,33.63735262]